[Event "*** Titled Tuesday 3|2 Blitz (Early)"]
[Site "Chess.com"]
[Date "2016.12.06"]
[Round "9"]
[White "Pierrebl"]
[Black "AdrianaNikolova"]
[Result "1-0"]
[WhiteElo "2479"]
[BlackElo "2259"]
[TimeControl "180+2"]
[EndTime "13:02:13 PST"]
[Termination "Pierrebl won by checkmate"]

1. e4 {[%clk 0:03:02]} 1... c5 {[%clk 0:02:58]} 2. Nf3 {[%clk 0:02:58.2]} 2...
d6 {[%clk 0:02:54.1]} 3. d4 {[%clk 0:02:59.3]} 3... cxd4 {[%clk 0:02:56]} 4.
Qxd4 {[%clk 0:03:00.7]} 4... a6 {[%clk 0:02:41.8]} 5. Bg5 {[%clk 0:02:59.9]}
5... Nc6 {[%clk 0:02:43.2]} 6. Qd2 {[%clk 0:03:01.1]} 6... h6 {[%clk 0:02:44.2]}
7. Bh4 {[%clk 0:03:02.1]} 7... g5 {[%clk 0:02:45.7]} 8. Bg3 {[%clk 0:03:03.7]}
8... Bg7 {[%clk 0:02:47.2]} 9. Nc3 {[%clk 0:03:05.4]} 9... Nf6 {[%clk
0:02:47.3]} 10. Bc4 {[%clk 0:03:06]} 10... Qa5 {[%clk 0:02:46.9]} 11. O-O-O
{[%clk 0:02:56.3]} 11... Bg4 {[%clk 0:02:32.8]} 12. h4 {[%clk 0:02:54.8]} 12...
gxh4 {[%clk 0:02:22.1]} 13. Rxh4 {[%clk 0:02:47.3]} 13... Rc8 {[%clk 0:01:58.1]}
14. Bb3 {[%clk 0:02:22.4]} 14... h5 {[%clk 0:01:48.6]} 15. Kb1 {[%clk
0:02:20.1]} 15... Qb4 {[%clk 0:01:29.9]} 16. a3 {[%clk 0:02:11.4]} 16... Qc5
{[%clk 0:01:27.6]} 17. Ng5 {[%clk 0:02:02.3]} 17... Bxd1 {[%clk 0:01:20.5]} 18.
Bxf7+ {[%clk 0:01:59.5]} 18... Kd7 {[%clk 0:01:14.7]} 19. Be6+ {[%clk
0:01:59.6]} 19... Kd8 {[%clk 0:01:02.2]} 20. Nf7+ {[%clk 0:01:47.2]} 20... Kc7
{[%clk 0:00:59.4]} 21. Nxh8 {[%clk 0:01:48.4]} 21... Rxh8 {[%clk 0:00:49.8]} 22.
Qxd1 {[%clk 0:01:45.3]} 22... Nd4 {[%clk 0:00:27.2]} 23. Bh3 {[%clk 0:01:20.8]}
23... e5 {[%clk 0:00:27.6]} 24. f3 {[%clk 0:01:11.9]} 24... Kb8 {[%clk
0:00:23.3]} 25. Bf2 {[%clk 0:01:12]} 25... Bh6 {[%clk 0:00:10.5]} 26. Bf5 {[%clk
0:01:01.7]} 26... Rg8 {[%clk 0:00:08.8]} 27. g3 {[%clk 0:00:58.8]} 27... Qc4
{[%clk 0:00:09.3]} 28. Ne2 {[%clk 0:00:31]} 28... Nxf3 {[%clk 0:00:09.4]} 29.
Qxd6+ {[%clk 0:00:29.6]} 29... Ka8 {[%clk 0:00:08.8]} 30. Qxf6 {[%clk
0:00:19.1]} 30... Nxh4 {[%clk 0:00:07.6]} 31. Qxh6 {[%clk 0:00:11.1]} 31... Nxf5
{[%clk 0:00:04.2]} 32. exf5 {[%clk 0:00:10.4]} 32... Qxe2 {[%clk 0:00:05]} 33.
Qb6 {[%clk 0:00:11]} 33... Qf1+ {[%clk 0:00:05.2]} 34. Ka2 {[%clk 0:00:12.1]}
34... Qc4+ {[%clk 0:00:06.7]} 35. Kb1 {[%clk 0:00:13.6]} 35... Qf1+ {[%clk
0:00:06.4]} 36. Ka2 {[%clk 0:00:14.8]} 36... Qc4+ {[%clk 0:00:08]} 37. Kb1
{[%clk 0:00:11.5]} 37... Kb8 {[%clk 0:00:04.9]} 38. f6 {[%clk 0:00:04.7]} 38...
Qf1+ {[%clk 0:00:04.4]} 39. Ka2 {[%clk 0:00:05.2]} 39... Qc4+ {[%clk 0:00:06]}
40. Kb1 {[%clk 0:00:06.7]} 40... Rc8 {[%clk 0:00:05.9]} 41. c3 {[%clk
0:00:06.4]} 41... Qf1+ {[%clk 0:00:05.5]} 42. Ka2 {[%clk 0:00:07.2]} 42... Qc4+
{[%clk 0:00:06.9]} 43. Kb1 {[%clk 0:00:08.7]} 43... Qd3+ {[%clk 0:00:08.2]} 44.
Ka2 {[%clk 0:00:09.8]} 44... Qd5+ {[%clk 0:00:09.2]} 45. Kb1 {[%clk 0:00:10.6]}
45... Qc6 {[%clk 0:00:09.3]} 46. Qa7+ {[%clk 0:00:10.9]} 46... Kc7 {[%clk
0:00:10.2]} 47. f7 {[%clk 0:00:11.7]} 47... Qe4+ {[%clk 0:00:09.8]} 48. Kc1
{[%clk 0:00:12.4]} 48... Rf8 {[%clk 0:00:08.7]} 49. Qc5+ {[%clk 0:00:13.5]}
49... Kd7 {[%clk 0:00:08.5]} 50. Qxf8 {[%clk 0:00:14.4]} 50... Qf3 {[%clk
0:00:08.7]} 51. Qe8+ {[%clk 0:00:14.6]} 51... Kd6 {[%clk 0:00:09.8]} 52. f8=Q+
{[%clk 0:00:15.5]} 52... Qxf8 {[%clk 0:00:11.4]} 53. Qxf8+ {[%clk 0:00:17]}
53... Kd5 {[%clk 0:00:13.3]} 54. Qf3+ {[%clk 0:00:18.3]} 54... Kc4 {[%clk
0:00:14.4]} 55. Qe4+ {[%clk 0:00:19.3]} 55... Kb3 {[%clk 0:00:16.3]} 56. Qd5+
{[%clk 0:00:20.5]} 56... Ka4 {[%clk 0:00:17.2]} 57. Qc4+ {[%clk 0:00:22.4]}
57... Ka5 {[%clk 0:00:19.1]} 58. Qb4# {[%clk 0:00:20.2]} 1-0

[Event "*** Titled Tuesday 3|2 Blitz (Early)"]
[Site "Chess.com"]
[Date "2016.12.06"]
[Round "9"]
[White "Rating-Schmating"]
[Black "Holden-Caulfield"]
[Result "1-0"]
[WhiteElo "2238"]
[BlackElo "2462"]
[TimeControl "180+2"]
[EndTime "13:02:24 PST"]
[Termination "Rating-Schmating won by resignation"]

1. e4 {[%clk 0:03:01.9]} 1... d6 {[%clk 0:03:01.9]} 2. Nf3 {[%clk 0:03:02.3]}
2... Nf6 {[%clk 0:03:02.6]} 3. Nc3 {[%clk 0:03:02.3]} 3... e5 {[%clk 0:03:03.5]}
4. d4 {[%clk 0:03:02.7]} 4... Nbd7 {[%clk 0:03:04.6]} 5. h3 {[%clk 0:03:03.5]}
5... Be7 {[%clk 0:03:05.8]} 6. Be2 {[%clk 0:03:02.9]} 6... c6 {[%clk 0:03:07.1]}
7. Be3 {[%clk 0:03:03.6]} 7... b5 {[%clk 0:03:07.8]} 8. a3 {[%clk 0:03:03.6]}
8... O-O {[%clk 0:03:08.3]} 9. O-O {[%clk 0:03:03.3]} 9... a6 {[%clk 0:03:08.9]}
10. Qd2 {[%clk 0:03:00.1]} 10... Qc7 {[%clk 0:03:09.6]} 11. Rad1 {[%clk
0:02:59.5]} 11... Re8 {[%clk 0:03:10.7]} 12. Ne1 {[%clk 0:02:51.5]} 12... Nf8
{[%clk 0:03:10.4]} 13. Nd3 {[%clk 0:02:46.3]} 13... Ng6 {[%clk 0:03:09.5]} 14.
f3 {[%clk 0:02:43.6]} 14... Bb7 {[%clk 0:03:08.7]} 15. b4 {[%clk 0:02:42.7]}
15... Rad8 {[%clk 0:03:06.7]} 16. Qe1 {[%clk 0:02:43.6]} 16... Bc8 {[%clk
0:03:06.6]} 17. Qf2 {[%clk 0:02:44.4]} 17... Nd7 {[%clk 0:03:01.7]} 18. Nb1
{[%clk 0:02:41.5]} 18... Bh4 {[%clk 0:02:56.6]} 19. g3 {[%clk 0:02:40.9]} 19...
Bf6 {[%clk 0:02:57.7]} 20. c3 {[%clk 0:02:38.8]} 20... Bb7 {[%clk 0:02:53.4]}
21. Nd2 {[%clk 0:02:38.7]} 21... d5 {[%clk 0:02:49.4]} 22. dxe5 {[%clk
0:02:37.3]} 22... Ngxe5 {[%clk 0:02:48]} 23. Nxe5 {[%clk 0:02:38]} 23... Bxe5
{[%clk 0:02:49.1]} 24. f4 {[%clk 0:02:39]} 24... Bd6 {[%clk 0:02:48.6]} 25. e5
{[%clk 0:02:39.6]} 25... Bf8 {[%clk 0:02:49.7]} 26. Nb3 {[%clk 0:02:40.7]} 26...
f6 {[%clk 0:02:43.6]} 27. exf6 {[%clk 0:02:39.6]} 27... Nxf6 {[%clk 0:02:44.7]}
28. Bf3 {[%clk 0:02:38.8]} 28... Qf7 {[%clk 0:02:38.7]} 29. Rfe1 {[%clk
0:02:36.3]} 29... Bc8 {[%clk 0:02:39.7]} 30. Bg2 {[%clk 0:02:32.8]} 30... Ne4
{[%clk 0:02:40.8]} 31. Bxe4 {[%clk 0:02:32.6]} 31... Rxe4 {[%clk 0:02:40.2]} 32.
Qg2 {[%clk 0:02:27.6]} 32... Rde8 {[%clk 0:02:37.3]} 33. Bf2 {[%clk 0:02:28.5]}
33... Qf5 {[%clk 0:02:20.9]} 34. Kh2 {[%clk 0:02:24]} 34... h5 {[%clk
0:02:16.3]} 35. Nd4 {[%clk 0:02:24.4]} 35... Qg6 {[%clk 0:02:13.6]} 36. Rxe4
{[%clk 0:02:23.5]} 36... Rxe4 {[%clk 0:02:14]} 37. Re1 {[%clk 0:02:23.8]} 37...
Rxe1 {[%clk 0:02:14.8]} 38. Bxe1 {[%clk 0:02:24.6]} 38... Bd7 {[%clk 0:02:15.8]}
39. Qe2 {[%clk 0:02:22.2]} 39... Bd6 {[%clk 0:02:12.7]} 40. Nf3 {[%clk
0:02:12.4]} 40... Qf5 {[%clk 0:02:07.6]} 41. Qg2 {[%clk 0:02:09.4]} 41... Qe4
{[%clk 0:02:06.3]} 42. Bf2 {[%clk 0:02:00.3]} 42... Qd3 {[%clk 0:02:03.8]} 43.
Bd4 {[%clk 0:01:59.4]} 43... Bf5 {[%clk 0:01:59.1]} 44. Ne5 {[%clk 0:01:57.3]}
44... Qd1 {[%clk 0:01:48.7]} 45. Qf3 {[%clk 0:01:34.7]} 45... Qc2+ {[%clk
0:01:42.4]} 46. Qf2 {[%clk 0:01:33.4]} 46... Qb1 {[%clk 0:01:38.7]} 47. Qg1
{[%clk 0:01:29.1]} 47... Qb2+ {[%clk 0:01:34.2]} 48. Qf2 {[%clk 0:01:30]} 48...
Qxa3 {[%clk 0:01:31.6]} 49. Nxc6 {[%clk 0:01:28.3]} 49... Be4 {[%clk 0:01:31.3]}
50. Ne5 {[%clk 0:01:15.9]} 50... Qc1 {[%clk 0:01:26]} 51. Nf3 {[%clk 0:01:13.5]}
51... Qd1 {[%clk 0:01:20.6]} 52. Ng1 {[%clk 0:01:11.8]} 52... h4 {[%clk
0:01:07.2]} 53. gxh4 {[%clk 0:01:05.8]} 53... Qc1 {[%clk 0:01:08.2]} 54. Ne2
{[%clk 0:00:44]} 54... Qh1+ {[%clk 0:01:06.3]} 55. Kg3 {[%clk 0:00:45.2]} 55...
Be7 {[%clk 0:01:03]} 56. Ng1 {[%clk 0:00:42.1]} 56... Kh7 {[%clk 0:00:50.8]} 57.
Nf3 {[%clk 0:00:34]} 57... Bxf3 {[%clk 0:00:39.4]} 58. Qxf3 {[%clk 0:00:34.5]}
58... Bxh4+ {[%clk 0:00:40.2]} 59. Kg4 {[%clk 0:00:32.1]} 59... Qxf3+ {[%clk
0:00:40.2]} 60. Kxf3 {[%clk 0:00:32.8]} 60... Kg6 {[%clk 0:00:40.8]} 61. Kg4
{[%clk 0:00:31]} 61... Be1 {[%clk 0:00:39.6]} 62. f5+ {[%clk 0:00:31.5]} 62...
Kf7 {[%clk 0:00:40.6]} 63. Kf4 {[%clk 0:00:30.8]} 1-0

[Event "*** Titled Tuesday 3|2 Blitz (Early)"]
[Site "Chess.com"]
[Date "2016.12.06"]
[Round "9"]
[White "viktorskliarov"]
[Black "ulises2013"]
[Result "1-0"]
[WhiteElo "2474"]
[BlackElo "2306"]
[TimeControl "180+2"]
[EndTime "13:02:31 PST"]
[Termination "viktorskliarov won by resignation"]

1. e4 {[%clk 0:03:01.2]} 1... g6 {[%clk 0:03:01.1]} 2. d4 {[%clk 0:02:58.1]}
2... Bg7 {[%clk 0:03:02.4]} 3. Nc3 {[%clk 0:02:59.4]} 3... c5 {[%clk 0:03:03.7]}
4. dxc5 {[%clk 0:02:56.9]} 4... Bxc3+ {[%clk 0:03:04.1]} 5. bxc3 {[%clk
0:02:57.4]} 5... Qa5 {[%clk 0:03:05.8]} 6. Qd4 {[%clk 0:02:25.6]} 6... Nf6
{[%clk 0:03:05.8]} 7. Qb4 {[%clk 0:02:22.2]} 7... Qc7 {[%clk 0:03:06.2]} 8. Nf3
{[%clk 0:02:22.4]} 8... Nc6 {[%clk 0:02:44.7]} 9. Qc4 {[%clk 0:02:22.3]} 9...
Na5 {[%clk 0:02:42.5]} 10. Qd4 {[%clk 0:02:17.8]} 10... Nc6 {[%clk 0:02:42.3]}
11. Qe3 {[%clk 0:02:15.3]} 11... b6 {[%clk 0:02:27.4]} 12. cxb6 {[%clk
0:02:11.8]} 12... axb6 {[%clk 0:02:29.3]} 13. Bd3 {[%clk 0:02:11.1]} 13... Ne5
{[%clk 0:02:12.8]} 14. Bd2 {[%clk 0:01:45.7]} 14... Nxf3+ {[%clk 0:02:02.5]} 15.
Qxf3 {[%clk 0:01:40.8]} 15... d6 {[%clk 0:02:03.7]} 16. h3 {[%clk 0:01:40.5]}
16... Be6 {[%clk 0:02:03.1]} 17. O-O {[%clk 0:01:38.3]} 17... O-O {[%clk
0:01:59.7]} 18. a4 {[%clk 0:01:25.6]} 18... Nd7 {[%clk 0:01:55.1]} 19. Bb5
{[%clk 0:01:21.3]} 19... Bc4 {[%clk 0:01:45.4]} 20. Rfb1 {[%clk 0:00:55.2]}
20... Bxb5 {[%clk 0:01:32.6]} 21. Rxb5 {[%clk 0:00:55.7]} 21... Ra6 {[%clk
0:01:22.6]} 22. h4 {[%clk 0:00:39.4]} 22... Rfa8 {[%clk 0:01:18.4]} 23. Rb4
{[%clk 0:00:36.3]} 23... Nc5 {[%clk 0:01:13.4]} 24. h5 {[%clk 0:00:34.9]} 24...
Rxa4 {[%clk 0:01:12.5]} 25. Raxa4 {[%clk 0:00:35.4]} 25... Rxa4 {[%clk
0:01:14.4]} 26. hxg6 {[%clk 0:00:36.6]} 26... hxg6 {[%clk 0:01:12.9]} 27. Rxa4
{[%clk 0:00:36.6]} 27... Nxa4 {[%clk 0:01:13.6]} 28. e5 {[%clk 0:00:38]} 28...
Nc5 {[%clk 0:01:09.8]} 29. exd6 {[%clk 0:00:30.6]} 29... Qxd6 {[%clk 0:01:11.7]}
30. Bf4 {[%clk 0:00:27.1]} 30... Qe6 {[%clk 0:00:48.7]} 31. Be3 {[%clk
0:00:23.9]} 31... Ne4 {[%clk 0:00:45.2]} 32. Bd4 {[%clk 0:00:23.1]} 32... b5
{[%clk 0:00:38.2]} 33. Qf4 {[%clk 0:00:21.6]} 33... Nf6 {[%clk 0:00:24.5]} 34.
Bxf6 {[%clk 0:00:21.4]} 34... Qxf6 {[%clk 0:00:26.4]} 35. Qxf6 {[%clk
0:00:19.3]} 35... exf6 {[%clk 0:00:28.3]} 36. Kf1 {[%clk 0:00:20.8]} 36... Kf8
{[%clk 0:00:29.8]} 37. Ke2 {[%clk 0:00:22.4]} 37... Ke7 {[%clk 0:00:31.4]} 38.
Kd3 {[%clk 0:00:23.6]} 38... Kd6 {[%clk 0:00:32.8]} 39. Kd4 {[%clk 0:00:24.8]}
39... Kc6 {[%clk 0:00:33.2]} 40. c4 {[%clk 0:00:26]} 40... bxc4 {[%clk
0:00:34.2]} 41. Kxc4 {[%clk 0:00:26.7]} 41... f5 {[%clk 0:00:35.2]} 42. Kd4
{[%clk 0:00:26.3]} 42... f6 {[%clk 0:00:36]} 43. c4 {[%clk 0:00:26.7]} 43... Kd6
{[%clk 0:00:36.3]} 44. c5+ {[%clk 0:00:27.4]} 44... Kc6 {[%clk 0:00:37.3]} 45.
Kc4 {[%clk 0:00:27]} 45... g5 {[%clk 0:00:37.6]} 46. Kd4 {[%clk 0:00:26]} 46...
f4 {[%clk 0:00:30.1]} 47. f3 {[%clk 0:00:25.2]} 47... f5 {[%clk 0:00:29.3]} 48.
Kc4 {[%clk 0:00:25.7]} 48... g4 {[%clk 0:00:30.1]} 49. Kd4 {[%clk 0:00:23.1]}
49... Kc7 {[%clk 0:00:23.8]} 50. Kd5 {[%clk 0:00:23]} 50... Kd7 {[%clk
0:00:24.4]} 51. Ke5 {[%clk 0:00:22.9]} 51... Kc6 {[%clk 0:00:21.4]} 52. Kxf4
{[%clk 0:00:23.5]} 52... Kxc5 {[%clk 0:00:19.4]} 53. Kxf5 {[%clk 0:00:23.4]}
53... gxf3 {[%clk 0:00:20]} 54. gxf3 {[%clk 0:00:22.5]} 54... Kd6 {[%clk
0:00:21.3]} 55. Kf6 {[%clk 0:00:22.9]} 55... Kd5 {[%clk 0:00:21.6]} 56. f4
{[%clk 0:00:21.3]} 56... Kd6 {[%clk 0:00:22.8]} 57. f5 {[%clk 0:00:20]} 57...
Kd7 {[%clk 0:00:21.7]} 58. Kg7 {[%clk 0:00:18.3]} 1-0

[Event "*** Titled Tuesday 3|2 Blitz (Early)"]
[Site "Chess.com"]
[Date "2016.12.06"]
[Round "9"]
[White "DanielNaroditsky"]
[Black "Harbuzi01"]
[Result "0-1"]
[WhiteElo "2698"]
[BlackElo "2701"]
[TimeControl "180+2"]
[EndTime "13:02:38 PST"]
[Termination "Harbuzi01 won on time"]

1. d4 {[%clk 0:03:02]} 1... g6 {[%clk 0:02:58.3]} 2. e4 {[%clk 0:03:02.8]} 2...
Bg7 {[%clk 0:02:59.4]} 3. c3 {[%clk 0:03:03.5]} 3... d6 {[%clk 0:03:00.3]} 4.
Nf3 {[%clk 0:03:04.3]} 4... Nc6 {[%clk 0:03:01]} 5. Bc4 {[%clk 0:03:05]} 5...
Nf6 {[%clk 0:02:59.4]} 6. Nbd2 {[%clk 0:03:06.4]} 6... O-O {[%clk 0:02:57.8]} 7.
O-O {[%clk 0:03:07.7]} 7... e5 {[%clk 0:02:57.1]} 8. dxe5 {[%clk 0:03:09.6]}
8... Nxe5 {[%clk 0:02:56]} 9. Nxe5 {[%clk 0:03:10.9]} 9... dxe5 {[%clk
0:02:55.7]} 10. Qe2 {[%clk 0:03:12.7]} 10... Qe7 {[%clk 0:02:54.2]} 11. a4
{[%clk 0:03:12.3]} 11... Rd8 {[%clk 0:02:53]} 12. a5 {[%clk 0:03:13.2]} 12... a6
{[%clk 0:02:51.1]} 13. b4 {[%clk 0:03:05]} 13... Nh5 {[%clk 0:02:46.4]} 14. g3
{[%clk 0:03:00]} 14... Bh3 {[%clk 0:02:42.4]} 15. Re1 {[%clk 0:03:00.6]} 15...
Nf6 {[%clk 0:02:38]} 16. Nb3 {[%clk 0:02:59.7]} 16... Be6 {[%clk 0:02:25.5]} 17.
f3 {[%clk 0:03:00.1]} 17... Bxc4 {[%clk 0:02:24.4]} 18. Qxc4 {[%clk 0:03:02]}
18... Ne8 {[%clk 0:02:26]} 19. Be3 {[%clk 0:02:46.8]} 19... Nd6 {[%clk
0:02:24.9]} 20. Qe2 {[%clk 0:02:45.9]} 20... f5 {[%clk 0:02:26]} 21. Nc5 {[%clk
0:02:42.3]} 21... f4 {[%clk 0:02:12.5]} 22. Bf2 {[%clk 0:02:40.2]} 22... Re8
{[%clk 0:02:08.8]} 23. g4 {[%clk 0:02:34.8]} 23... h5 {[%clk 0:02:07.8]} 24. h3
{[%clk 0:02:32.2]} 24... Bf6 {[%clk 0:02:06.1]} 25. Rad1 {[%clk 0:01:38.1]}
25... Qf7 {[%clk 0:00:38.6]} 26. Rd5 {[%clk 0:01:33]} 26... Rad8 {[%clk
0:00:37]} 27. Red1 {[%clk 0:01:33.9]} 27... Qe7 {[%clk 0:00:37.4]} 28. Kg2
{[%clk 0:01:11.6]} 28... hxg4 {[%clk 0:00:37.1]} 29. hxg4 {[%clk 0:01:12.3]}
29... Qf7 {[%clk 0:00:37.3]} 30. c4 {[%clk 0:00:57.4]} 30... Ra8 {[%clk
0:00:37.1]} 31. Nb3 {[%clk 0:00:44.6]} 31... Kg7 {[%clk 0:00:35.4]} 32. Bc5
{[%clk 0:00:45.8]} 32... Rac8 {[%clk 0:00:32.6]} 33. b5 {[%clk 0:00:43.7]} 33...
axb5 {[%clk 0:00:30.4]} 34. cxb5 {[%clk 0:00:45.6]} 34... Rh8 {[%clk 0:00:30.2]}
35. b6 {[%clk 0:00:39.1]} 35... Kg8 {[%clk 0:00:28]} 36. Bg1 {[%clk 0:00:27.7]}
36... Qh7 {[%clk 0:00:26.2]} 37. Kf1 {[%clk 0:00:28.7]} 37... Qh3+ {[%clk
0:00:24.8]} 38. Qg2 {[%clk 0:00:29.8]} 38... Nc4 {[%clk 0:00:26.5]} 39. Qxh3
{[%clk 0:00:18.8]} 39... Rxh3 {[%clk 0:00:25.8]} 40. Ke2 {[%clk 0:00:20.7]}
40... cxb6 {[%clk 0:00:24.6]} 41. axb6 {[%clk 0:00:22.6]} 41... Ra8 {[%clk
0:00:22.1]} 42. Nc1 {[%clk 0:00:04.5]} 42... Ne3 {[%clk 0:00:21.1]} 43. Bxe3
{[%clk 0:00:05.3]} 43... fxe3 {[%clk 0:00:22.1]} 44. Rd7 {[%clk 0:00:04.5]}
44... Rh2+ {[%clk 0:00:20.2]} 45. Kxe3 {[%clk 0:00:06]} 45... Ra3+ {[%clk
0:00:20.3]} 46. Nd3 {[%clk 0:00:03.5]} 46... Bg5+ {[%clk 0:00:18.7]} 47. f4
{[%clk 0:00:05.2]} 47... Bxf4+ {[%clk 0:00:19.4]} 48. Kf3 {[%clk 0:00:07]} 48...
Rh3+ {[%clk 0:00:19.5]} 49. Kg2 {[%clk 0:00:07.5]} 49... Ra2+ {[%clk 0:00:16.9]}
50. Nf2 {[%clk 0:00:03.3]} 50... Rh2+ {[%clk 0:00:18]} 51. Kg1 {[%clk
0:00:04.6]} 51... Raxf2 {[%clk 0:00:16.4]} 52. Rxb7 {[%clk 0:00:05.1]} 52... Rd2
{[%clk 0:00:14.7]} 53. Rxd2 {[%clk 0:00:04.9]} 53... Rxd2 {[%clk 0:00:16.6]} 54.
Rb8+ {[%clk 0:00:03.8]} 54... Kg7 {[%clk 0:00:15.6]} 55. b7 {[%clk 0:00:04.6]}
55... Be3+ {[%clk 0:00:16.5]} 56. Kf1 {[%clk 0:00:05.9]} 56... Rf2+ {[%clk
0:00:15.8]} 57. Ke1 {[%clk 0:00:07.2]} 57... Rb2 {[%clk 0:00:15.6]} 58. Kd1
{[%clk 0:00:06.4]} 58... Ba7 {[%clk 0:00:14]} 59. Re8 {[%clk 0:00:06.8]} 59...
Kf6 {[%clk 0:00:11.7]} 0-1

[Event "*** Titled Tuesday 3|2 Blitz (Early)"]
[Site "Chess.com"]
[Date "2016.12.06"]
[Round "9"]
[White "saraswathii"]
[Black "Tash_Boy"]
[Result "0-1"]
[WhiteElo "2202"]
[BlackElo "2475"]
[TimeControl "180+2"]
[EndTime "13:03:00 PST"]
[Termination "Tash_Boy won by resignation"]

1. e4 {[%clk 0:03:02]} 1... c5 {[%clk 0:02:55.7]} 2. Nf3 {[%clk 0:03:02.2]} 2...
d6 {[%clk 0:02:55.9]} 3. d3 {[%clk 0:03:02.9]} 3... Nc6 {[%clk 0:02:49.9]} 4. g3
{[%clk 0:03:01.5]} 4... g6 {[%clk 0:02:51.5]} 5. Bg2 {[%clk 0:03:01.8]} 5... Bg7
{[%clk 0:02:53.4]} 6. O-O {[%clk 0:03:02.4]} 6... e6 {[%clk 0:02:55.3]} 7. c3
{[%clk 0:03:02.8]} 7... Nge7 {[%clk 0:02:57.2]} 8. Be3 {[%clk 0:02:59]} 8... O-O
{[%clk 0:02:57.6]} 9. d4 {[%clk 0:02:57.4]} 9... b6 {[%clk 0:02:59]} 10. Na3
{[%clk 0:02:56.3]} 10... Bb7 {[%clk 0:02:56.8]} 11. Re1 {[%clk 0:02:56.6]} 11...
Rc8 {[%clk 0:02:55.9]} 12. Qe2 {[%clk 0:02:47.4]} 12... Na5 {[%clk 0:02:54.2]}
13. Bf4 {[%clk 0:02:35.5]} 13... a6 {[%clk 0:02:33.1]} 14. Rad1 {[%clk
0:02:21.4]} 14... cxd4 {[%clk 0:02:33.9]} 15. cxd4 {[%clk 0:02:20]} 15... b5
{[%clk 0:02:34]} 16. e5 {[%clk 0:02:15.9]} 16... Nd5 {[%clk 0:02:26.6]} 17. Bg5
{[%clk 0:02:11.8]} 17... Qd7 {[%clk 0:02:26.4]} 18. Qd2 {[%clk 0:02:06.9]} 18...
b4 {[%clk 0:02:25.9]} 19. Nb1 {[%clk 0:02:03.1]} 19... Nc4 {[%clk 0:02:26]} 20.
Qe2 {[%clk 0:02:02.9]} 20... a5 {[%clk 0:02:22]} 21. b3 {[%clk 0:01:51.4]} 21...
Na3 {[%clk 0:02:22.6]} 22. Bd2 {[%clk 0:01:34.4]} 22... Nc2 {[%clk 0:02:12.4]}
23. Rf1 {[%clk 0:01:33.4]} 23... Bc6 {[%clk 0:01:50.3]} 24. Ne1 {[%clk 0:01:20]}
24... Bb5 {[%clk 0:01:48.8]} 25. Nd3 {[%clk 0:01:17.7]} 25... dxe5 {[%clk
0:01:50]} 26. dxe5 {[%clk 0:01:14.6]} 26... Rfd8 {[%clk 0:01:48]} 27. Bg5 {[%clk
0:01:13.5]} 27... Re8 {[%clk 0:01:32.1]} 28. Qe4 {[%clk 0:00:52.7]} 28... h6
{[%clk 0:01:28.9]} 29. Bc1 {[%clk 0:00:47.5]} 29... Red8 {[%clk 0:01:21.6]} 30.
f4 {[%clk 0:00:44.4]} 30... Qa7+ {[%clk 0:01:21.1]} 31. Rf2 {[%clk 0:00:42.2]}
31... Nc3 {[%clk 0:01:17.3]} 32. Nxc3 {[%clk 0:00:41]} 32... Rxc3 {[%clk
0:01:17.9]} 33. Nb2 {[%clk 0:00:42.1]} 33... Nd4 {[%clk 0:01:03.3]} 34. Kh1
{[%clk 0:00:33.7]} 34... Bf8 {[%clk 0:00:51.6]} 35. Be3 {[%clk 0:00:30.4]} 35...
Bc5 {[%clk 0:00:51.9]} 36. Bxd4 {[%clk 0:00:29.4]} 36... Rxd4 {[%clk 0:00:49.6]}
37. Rxd4 {[%clk 0:00:29.8]} 37... Bxd4 {[%clk 0:00:50.5]} 38. Rd2 {[%clk
0:00:31.4]} 38... Rc1+ {[%clk 0:00:39.4]} 39. Rd1 {[%clk 0:00:30.2]} 39... Rxd1+
{[%clk 0:00:40]} 40. Nxd1 {[%clk 0:00:32.1]} 40... Qc5 {[%clk 0:00:39.6]} 41.
Bf3 {[%clk 0:00:31.9]} 41... h5 {[%clk 0:00:33.9]} 42. h3 {[%clk 0:00:28.5]}
42... Kg7 {[%clk 0:00:30.1]} 43. g4 {[%clk 0:00:29.7]} 43... hxg4 {[%clk
0:00:30.2]} 44. hxg4 {[%clk 0:00:31.6]} 44... a4 {[%clk 0:00:27.1]} 45. Kg2
{[%clk 0:00:28.1]} 45... a3 {[%clk 0:00:25.4]} 46. g5 {[%clk 0:00:25.6]} 46...
Ba1 {[%clk 0:00:17.6]} 47. Nf2 {[%clk 0:00:22.1]} 47... Qc1 {[%clk 0:00:18.1]}
48. Nd1 {[%clk 0:00:21.3]} 48... Qd2+ {[%clk 0:00:18.1]} 49. Kg3 {[%clk
0:00:20.7]} 49... Qxa2 {[%clk 0:00:18.8]} 50. Qb7 {[%clk 0:00:21.5]} 50... Qd2
{[%clk 0:00:18.9]} 51. Qxb5 {[%clk 0:00:21.6]} 51... a2 {[%clk 0:00:19]} 52. Qe8
{[%clk 0:00:19.8]} 52... Bxe5 {[%clk 0:00:19.5]} 53. fxe5 {[%clk 0:00:17.3]}
53... a1=Q {[%clk 0:00:20.7]} 54. Qb8 {[%clk 0:00:17.1]} 54... Qxg5+ {[%clk
0:00:20.5]} 55. Kf2 {[%clk 0:00:18.5]} 55... Qd4+ {[%clk 0:00:20.6]} 56. Ke2
{[%clk 0:00:19.1]} 56... Qdd2+ {[%clk 0:00:20]} 0-1